Workbook

Sheet Input
A1: No.Anggota | B1: : | C1: 2027
A2: Nama | B2: : | C2: =VLOOKUP(C1,M2:N11,2,0) -> didin | L2: 1 | M2: 2025 | N2: dudun | O2: Simpanan1 | P2: Jan
A3: Bulan | B3: : | C3: Mar | L3: 2 | M3: 2026 | N3: wiwin | O3: Simpanan2 | P3: Feb
A4: Tabel Name | B4: : | C4: =VLOOKUP(C1,M2:O11,3,0) -> Simpanan3 | L4: 3 | M4: 2027 | N4: didin | O4: Simpanan3 | P4: Mar
A5: Potongan Simpanan : | L5: 4 | M5: 2028 | N5: dadan | O5: Simpanan4 | P5: Apr
A6: Pokok | B6: Rp. : | C6: 0 | L6: 5 | M6: 2029 | N6: wawa | O6: Simpanan5 | P6: May
A7: Wajib | B7: Rp. : | C7: 2000 | L7: 6 | M7: 2030 | N7: wowo | O7: Simpanan6 | P7: Jun
A8: Sukarela | B8: Rp. : | C8: 3000 | L8: 7 | M8: 2031 | N8: wiwi | O8: Simpanan7 | P8: Jul
A9: Wisata | B9: Rp. : | C9: 4000 | L9: 8 | M9: 2032 | N9: dada | O9: Simpanan8 | P9: Aug
A10: Pendidikan | B10: Rp. : | C10: 999999 | L10: 9 | M10: 2033 | N10: dea | O10: Simpanan9 | P10: Sep
A11: SIHARA | B11: Rp. : | C11: 6000 | L11: 10 | M11: 2034 | N11: deni | O11: Simpanan10 | P11: Oct
A12: Potongan Pinjaman : | P12: Nov
A13: J. Panjang | B13: Rp. : | C13: 100 | P13: Dec
A14: Ringan | B14: Rp. : | C14: 200
A15: Barang | B15: Rp. : | C15: 300
A16: Potongan Jasa :
A17: J. Panjang | B17: Rp. : | C17: 500
A18: Ringan | B18: Rp. : | C18: 600
A19: Barang | B19: Rp. : | C19: 700
A20: Dana Sosial Rp. : | B20: Rp. : | C20: 0
A21: Beras | B21: Rp. : | C21: 0
A22: lain-lain | B22: Rp. : | C22: 0
A23: Total Potongan Rp. : | C23: =SUM(C6:C21) -> 1017399

Sheet Sheet2
A1: 1
A2: Simpanan
A3: Nama | B3: : | C3: =VLOOKUP(A1,Input!$L$2:$N$11,3,0) -> dudun
A4: No. Angg | B4: : | C4: =VLOOKUP(A1,Input!$L$2:$N$11,2,0) -> 2025 | J4: Jml.Dividen : | K4: =IF(P19=0,0,Q20) -> 
A5: Bulan | C5: SP | D5: SW | E5: SS | F5: Tarik Simp | G5: SIHARA | J5: Pendidikan | M5: WISATA | P5: Saldo
G6: Simpanan | H6: Tarik Simp. | I6: saldo | J6: Simpanan | K6: Tarik Simp. | L6: saldo | M6: Simpanan | N6: Tarik Simp. | O6: saldo | P6: SW&SS
A7: Pindahan | I7: =+G7 -> 0 | L7: =+J7 -> 0 | O7: =+M7 -> 0 | P7: =+D7+E7 -> 0
A8: Januari | I8: =+I7+G8-H8 -> 0 | L8: =+L7+J8-K8 -> 0 | O8: =+O7+M8-N8 -> 0 | P8: =+P7+D8+E8-F8 -> 0
A9: Pebruari | I9: =+I8+G9-H9 -> 0 | L9: =+L8+J9-K9 -> 0 | O9: =+O8+M9-N9 -> 0 | P9: =+P8+D9+E9-F9 -> 0
A10: Maret | D10: =+Input!B8 -> Rp. : | E10: =+Input!C8 -> 3000 | G10: =+Input!C11 -> 6000 | I10: 6000 | J10: =+Input!C10 -> 999999 | L10: 999999 | M10: =+Input!C9 -> 4000 | O10: 4000
A11: april | I11: 6000 | J11: 0 | L11: 999999 | O11: 4000
A12: Mei | I12: 6000 | L12: 999999 | O12: 4000
A13: Juni | I13: 6000 | L13: 999999 | O13: 4000
A14: Juli | I14: 6000 | L14: 999999 | O14: 4000
A15: Agustus | I15: 6000 | L15: 999999 | O15: 4000
A16: September | I16: 6000 | L16: 999999 | O16: 4000
A17: Oktober | I17: 6000 | L17: 999999 | O17: 4000
A18: Nopember | I18: 6000 | L18: 999999 | O18: 4000
A19: Desember | I19: 6000 | L19: 999999 | O19: 4000
A20: Jumlah | C20: =SUM(C7:C19) -> 0 | D20: =IF(P19=0,(0),SUM(D7:D19)) ->  | E20: =IF(P19=0,(0),SUM(E7:E19)) ->  | F20: =SUM(F7:F19) -> 0 | G20: =SUM(G7:G19) -> 6000 | H20: =SUM(H8:H19) -> 0 | I20: =+I19 -> 6000 | J20: =SUM(J7:J19) -> 999999 | K20: =SUM(K8:K19) -> 0 | L20: =+L19 -> 999999 | M20: =SUM(M7:M19) -> 4000 | N20: =SUM(N8:N19) -> 0 | O20: =+O19 -> 4000
A22: Pinjaman | J22: Jml. BJP : | K22: =+J38 -> 500
A23: Bulan | C23: Salpin lalu | E23: Pinj.Baru | H23: Angsuran | K23: Bunga Pinj. | N23: Salpin bln ini | P23: PROPISI
D24: J. Panjang | E24: Ringan | F24: Barang | G24: J. Panjang | H24: Ringan | I24: Barang | J24: J. Panjang | K24: Ringan | L24: Barang | M24: J. Panjang | N24: Ringan | O24: Barang
A25: Pindahan | D25: 5000 | E25: 3000 | F25: 2000 | M25: =+C25+D25-G25 -> 5000 | N25: =+E25 -> 3000 | O25: =+F25 -> 2000 | P25: 0
A26: Januari | C26: 0 | M26: =+M25+D26-G26 -> 5000 | N26: =+N25+E26-H26 -> 3000 | O26: =+O25+F26-I26 -> 2000 | P26: 0
A27: Pebruari | C27: 0 | M27: 5000 | N27: 3000 | O27: 2000
A28: Maret | C28: 0 | G28: =+Input!C13 -> 100 | H28: =+Input!C14 -> 200 | I28: =+Input!C15 -> 300 | J28: =+Input!C17 -> 500 | K28: =+Input!C18 -> 600 | L28: =+Input!C19 -> 700 | M28: 4900 | N28: 2800 | O28: 1700 | P28: 0
A29: April | C29: 0 | M29: 4900 | N29: 2800 | O29: 1700 | P29: 0
A30: Mei | C30: 0 | M30: 4900 | N30: 2800 | O30: 1700 | P30: 0
A31: Juni | C31: 0 | M31: 4900 | N31: 2800 | O31: 1700 | P31: 0
A32: Juli | C32: 0 | M32: 4900 | N32: 2800 | O32: 1700 | P32: 0
A33: Agustus | C33: 0 | M33: 4900 | N33: 2800 | O33: 1700 | P33: =+D33*0.01 -> 0
A34: September | C34: 0 | M34: 4900 | N34: 2800 | O34: 1700 | P34: 0
A35: Oktober | C35: 0 | M35: 4900 | N35: 2800 | O35: 1700 | P35: 0
A36: Nopember | C36: 0 | M36: 4900 | N36: 2800 | O36: 1700 | P36: 0
A37: Desember | C37: 0 | M37: 4900 | N37: 2800 | O37: 1700 | P37: 0
A38: Jumlah | C38: =SUM(C26:C37) -> 0 | D38: =SUM(D26:D37) -> 0 | E38: 0 | F38: 0 | G38: 100 | H38: 200 | I38: 300 | J38: 500 | K38: 600 | L38: 700 | P38: =SUM(P25:P37) -> 0
A40: =+A1+1 -> 2
A41: Simpanan
A42: Nama | B42: : | C42: =VLOOKUP(A40,Input!$L$2:$N$11,3,0) -> wiwin
A43: No. Angg | B43: : | C43: =VLOOKUP(A40,Input!$L$2:$N$11,2,0) -> 2026 | J43: Jml.Dividen : | K43: =IF(P58=0,0,Q59) -> 0
A44: Bulan | C44: SP | D44: SW | E44: SS | F44: Tarik Simp | G44: SIHARA | J44: Pendidikan | M44: WISATA | P44: Saldo
G45: Simpanan | H45: Tarik Simp. | I45: saldo | J45: Simpanan | K45: Tarik Simp. | L45: saldo | M45: Simpanan | N45: Tarik Simp. | O45: saldo | P45: SW&SS
A46: Pindahan | I46: =+G46 -> 0 | L46: =+J46 -> 0 | O46: =+M46 -> 0 | P46: =+D46+E46 -> 0
A47: Januari | I47: =+I46+G47-H47 -> 0 | L47: =+L46+J47-K47 -> 0 | O47: =+O46+M47-N47 -> 0 | P47: =+P46+D47+E47-F47 -> 0
A48: Pebruari | I48: =+I47+G48-H48 -> 0 | L48: =+L47+J48-K48 -> 0 | O48: =+O47+M48-N48 -> 0 | P48: =+P47+D48+E48-F48 -> 0
A49: Maret | I49: 0 | J49: 0 | L49: 0 | O49: 0 | P49: 0
A50: april | I50: 0 | J50: 0 | L50: 0 | O50: 0 | P50: 0
A51: Mei | I51: 0 | L51: 0 | O51: 0 | P51: 0
A52: Juni | I52: 0 | L52: 0 | O52: 0 | P52: 0
A53: Juli | I53: 0 | L53: 0 | O53: 0 | P53: 0
A54: Agustus | I54: 0 | L54: 0 | O54: 0 | P54: 0
A55: September | I55: 0 | L55: 0 | O55: 0 | P55: 0
A56: Oktober | I56: 0 | L56: 0 | O56: 0 | P56: 0
A57: Nopember | I57: 0 | L57: 0 | O57: 0 | P57: 0
A58: Desember | I58: 0 | L58: 0 | O58: 0 | P58: 0
A59: Jumlah | C59: =SUM(C46:C58) -> 0 | D59: =IF(P58=0,(0),SUM(D46:D58)) -> 0 | E59: =IF(P58=0,(0),SUM(E46:E58)) -> 0 | F59: =SUM(F46:F58) -> 0 | G59: =SUM(G46:G58) -> 0 | H59: =SUM(H47:H58) -> 0 | I59: =+I58 -> 0 | J59: =SUM(J46:J58) -> 0 | K59: =SUM(K47:K58) -> 0 | L59: =+L58 -> 0 | M59: =SUM(M46:M58) -> 0 | N59: =SUM(N47:N58) -> 0 | O59: =+O58 -> 0
A61: Pinjaman | J61: Jml. BJP : | K61: =+J77 -> 0
A62: Bulan | C62: Salpin lalu | E62: Pinj.Baru | H62: Angsuran | K62: Bunga Pinj. | N62: Salpin bln ini | P62: PROPISI
D63: J. Panjang | E63: Ringan | F63: Barang | G63: J. Panjang | H63: Ringan | I63: Barang | J63: J. Panjang | K63: Ringan | L63: Barang | M63: J. Panjang | N63: Ringan | O63: Barang
A64: Pindahan | E64: 0 | F64: 0 | M64: =+C64+D64-G64 -> 0 | N64: =+E64 -> 0 | P64: 0
A65: Januari | C65: 0 | M65: =+M64+D65-G65 -> 0 | N65: =+N64+E65-H65 -> 0 | O65: =+O64+F65-I65 -> 0 | P65: 0
A66: Pebruari | C66: 0 | M66: 0 | N66: =+N65+E66-H66 -> 0 | O66: =+O65+F66-I66 -> 0
A67: Maret | C67: 0 | M67: 0 | N67: 0 | O67: 0 | P67: 0
A68: April | C68: 0 | M68: 0 | N68: 0 | O68: 0 | P68: 0
A69: Mei | C69: 0 | M69: 0 | N69: 0 | O69: 0 | P69: 0
A70: Juni | C70: 0 | M70: 0 | N70: 0 | O70: 0 | P70: 0
A71: Juli | C71: 0 | M71: 0 | N71: 0 | O71: 0 | P71: 0
A72: Agustus | C72: 0 | M72: 0 | N72: 0 | O72: 0 | P72: =+D72*0.01 -> 0
A73: September | C73: 0 | M73: 0 | N73: 0 | O73: 0 | P73: 0
A74: Oktober | C74: 0 | M74: 0 | N74: 0 | O74: 0 | P74: 0
A75: Nopember | C75: 0 | M75: 0 | N75: 0 | O75: 0 | P75: 0
A76: Desember | C76: 0 | M76: 0 | N76: 0 | O76: 0 | P76: 0
A77: Jumlah | C77: =SUM(C65:C76) -> 0 | D77: =SUM(D65:D76) -> 0 | E77: 0 | F77: 0 | G77: 0 | H77: 0 | I77: 0 | J77: 0 | K77: 0 | L77: 0 | P77: =SUM(P64:P76) -> 0
A79: =+A40+1 -> 3
A80: Simpanan
A81: Nama | B81: : | C81: =VLOOKUP(A79,Input!$L$2:$N$11,3,0) -> didin
A82: No. Angg | B82: : | C82: =VLOOKUP(A79,Input!$L$2:$N$11,2,0) -> 2027 | J82: Jml.Dividen : | K82: =IF(P97=0,0,Q98) -> 0
A83: Bulan | C83: SP | D83: SW | E83: SS | F83: Tarik Simp | G83: SIHARA | J83: Pendidikan | M83: WISATA | P83: Saldo
G84: Simpanan | H84: Tarik Simp. | I84: saldo | J84: Simpanan | K84: Tarik Simp. | L84: saldo | M84: Simpanan | N84: Tarik Simp. | O84: saldo | P84: SW&SS
A85: Pindahan | I85: =+G85 -> 0 | L85: =+J85 -> 0 | O85: =+M85 -> 0 | P85: =+D85+E85 -> 0
A86: Januari | I86: =+I85+G86-H86 -> 0 | L86: =+L85+J86-K86 -> 0 | O86: =+O85+M86-N86 -> 0 | P86: =+P85+D86+E86-F86 -> 0
A87: Pebruari | I87: =+I86+G87-H87 -> 0 | L87: =+L86+J87-K87 -> 0 | O87: =+O86+M87-N87 -> 0 | P87: =+P86+D87+E87-F87 -> 0
A88: Maret | I88: 0 | J88: 0 | L88: 0 | O88: 0 | P88: 0
A89: april | I89: 0 | J89: 0 | L89: 0 | O89: 0 | P89: 0
A90: Mei | I90: 0 | L90: 0 | O90: 0 | P90: 0
A91: Juni | I91: 0 | L91: 0 | O91: 0 | P91: 0
A92: Juli | I92: 0 | L92: 0 | O92: 0 | P92: 0
A93: Agustus | I93: 0 | L93: 0 | O93: 0 | P93: 0
A94: September | I94: 0 | L94: 0 | O94: 0 | P94: 0
A95: Oktober | I95: 0 | L95: 0 | O95: 0 | P95: 0
A96: Nopember | I96: 0 | L96: 0 | O96: 0 | P96: 0
A97: Desember | I97: 0 | L97: 0 | O97: 0 | P97: 0
A98: Jumlah | C98: =SUM(C85:C97) -> 0 | D98: =IF(P97=0,(0),SUM(D85:D97)) -> 0 | E98: =IF(P97=0,(0),SUM(E85:E97)) -> 0 | F98: =SUM(F85:F97) -> 0 | G98: =SUM(G85:G97) -> 0 | H98: =SUM(H86:H97) -> 0 | I98: =+I97 -> 0 | J98: =SUM(J85:J97) -> 0 | K98: =SUM(K86:K97) -> 0 | L98: =+L97 -> 0 | M98: =SUM(M85:M97) -> 0 | N98: =SUM(N86:N97) -> 0 | O98: =+O97 -> 0
A100: Pinjaman | J100: Jml. BJP : | K100: =+J116 -> 0
A101: Bulan | C101: Salpin lalu | E101: Pinj.Baru | H101: Angsuran | K101: Bunga Pinj. | N101: Salpin bln ini | P101: PROPISI
D102: J. Panjang | E102: Ringan | F102: Barang | G102: J. Panjang | H102: Ringan | I102: Barang | J102: J. Panjang | K102: Ringan | L102: Barang | M102: J. Panjang | N102: Ringan | O102: Barang
A103: Pindahan | E103: 0 | F103: 0 | M103: =+C103+D103-G103 -> 0 | N103: =+E103 -> 0 | P103: 0
A104: Januari | C104: 0 | M104: =+M103+D104-G104 -> 0 | N104: =+N103+E104-H104 -> 0 | O104: =+O103+F104-I104 -> 0 | P104: 0
A105: Pebruari | C105: 0 | M105: 0 | N105: =+N104+E105-H105 -> 0 | O105: =+O104+F105-I105 -> 0
A106: Maret | C106: 0 | M106: 0 | N106: 0 | O106: 0 | P106: 0
A107: April | C107: 0 | M107: 0 | N107: 0 | O107: 0 | P107: 0
A108: Mei | C108: 0 | M108: 0 | N108: 0 | O108: 0 | P108: 0
A109: Juni | C109: 0 | M109: 0 | N109: 0 | O109: 0 | P109: 0
A110: Juli | C110: 0 | M110: 0 | N110: 0 | O110: 0 | P110: 0
A111: Agustus | C111: 0 | M111: 0 | N111: 0 | O111: 0 | P111: =+D111*0.01 -> 0
A112: September | C112: 0 | M112: 0 | N112: 0 | O112: 0 | P112: 0
A113: Oktober | C113: 0 | M113: 0 | N113: 0 | O113: 0 | P113: 0
A114: Nopember | C114: 0 | M114: 0 | N114: 0 | O114: 0 | P114: 0
A115: Desember | C115: 0 | M115: 0 | N115: 0 | O115: 0 | P115: 0
A116: Jumlah | C116: =SUM(C104:C115) -> 0 | D116: =SUM(D104:D115) -> 0 | E116: 0 | F116: 0 | G116: 0 | H116: 0 | I116: 0 | J116: 0 | K116: 0 | L116: 0 | P116: =SUM(P103:P115) -> 0
A118: =+A79+1 -> 4
A119: Simpanan
A120: Nama | B120: : | C120: =VLOOKUP(A118,Input!$L$2:$N$11,3,0) -> dadan
A121: No. Angg | B121: : | C121: =VLOOKUP(A118,Input!$L$2:$N$11,2,0) -> 2028 | J121: Jml.Dividen : | K121: =IF(P136=0,0,Q137) -> 0
A122: Bulan | C122: SP | D122: SW | E122: SS | F122: Tarik Simp | G122: SIHARA | J122: Pendidikan | M122: WISATA | P122: Saldo
G123: Simpanan | H123: Tarik Simp. | I123: saldo | J123: Simpanan | K123: Tarik Simp. | L123: saldo | M123: Simpanan | N123: Tarik Simp. | O123: saldo | P123: SW&SS
A124: Pindahan | I124: =+G124 -> 0 | L124: =+J124 -> 0 | O124: =+M124 -> 0 | P124: =+D124+E124 -> 0
A125: Januari | I125: =+I124+G125-H125 -> 0 | L125: =+L124+J125-K125 -> 0 | O125: =+O124+M125-N125 -> 0 | P125: =+P124+D125+E125-F125 -> 0
A126: Pebruari | I126: =+I125+G126-H126 -> 0 | L126: =+L125+J126-K126 -> 0 | O126: =+O125+M126-N126 -> 0 | P126: =+P125+D126+E126-F126 -> 0
A127: Maret | I127: 0 | J127: 0 | L127: 0 | O127: 0 | P127: 0
A128: april | I128: 0 | J128: 0 | L128: 0 | O128: 0 | P128: 0
A129: Mei | I129: 0 | L129: 0 | O129: 0 | P129: 0
A130: Juni | I130: 0 | L130: 0 | O130: 0 | P130: 0
A131: Juli | I131: 0 | L131: 0 | O131: 0 | P131: 0
A132: Agustus | I132: 0 | L132: 0 | O132: 0 | P132: 0
A133: September | I133: 0 | L133: 0 | O133: 0 | P133: 0
A134: Oktober | I134: 0 | L134: 0 | O134: 0 | P134: 0
A135: Nopember | I135: 0 | L135: 0 | O135: 0 | P135: 0
A136: Desember | I136: 0 | L136: 0 | O136: 0 | P136: 0
A137: Jumlah | C137: =SUM(C124:C136) -> 0 | D137: =IF(P136=0,(0),SUM(D124:D136)) -> 0 | E137: =IF(P136=0,(0),SUM(E124:E136)) -> 0 | F137: =SUM(F124:F136) -> 0 | G137: =SUM(G124:G136) -> 0 | H137: =SUM(H125:H136) -> 0 | I137: =+I136 -> 0 | J137: =SUM(J124:J136) -> 0 | K137: =SUM(K125:K136) -> 0 | L137: =+L136 -> 0 | M137: =SUM(M124:M136) -> 0 | N137: =SUM(N125:N136) -> 0 | O137: =+O136 -> 0
A139: Pinjaman | J139: Jml. BJP : | K139: =+J155 -> 0
A140: Bulan | C140: Salpin lalu | E140: Pinj.Baru | H140: Angsuran | K140: Bunga Pinj. | N140: Salpin bln ini | P140: PROPISI
D141: J. Panjang | E141: Ringan | F141: Barang | G141: J. Panjang | H141: Ringan | I141: Barang | J141: J. Panjang | K141: Ringan | L141: Barang | M141: J. Panjang | N141: Ringan | O141: Barang
A142: Pindahan | E142: 0 | F142: 0 | M142: =+C142+D142-G142 -> 0 | N142: =+E142 -> 0 | P142: 0
A143: Januari | C143: 0 | M143: =+M142+D143-G143 -> 0 | N143: =+N142+E143-H143 -> 0 | O143: =+O142+F143-I143 -> 0 | P143: 0
A144: Pebruari | C144: 0 | M144: 0 | N144: =+N143+E144-H144 -> 0 | O144: =+O143+F144-I144 -> 0
A145: Maret | C145: 0 | M145: 0 | N145: 0 | O145: 0 | P145: 0
A146: April | C146: 0 | M146: 0 | N146: 0 | O146: 0 | P146: 0
A147: Mei | C147: 0 | M147: 0 | N147: 0 | O147: 0 | P147: 0
A148: Juni | C148: 0 | M148: 0 | N148: 0 | O148: 0 | P148: 0
A149: Juli | C149: 0 | M149: 0 | N149: 0 | O149: 0 | P149: 0
A150: Agustus | C150: 0 | M150: 0 | N150: 0 | O150: 0 | P150: =+D150*0.01 -> 0
A151: September | C151: 0 | M151: 0 | N151: 0 | O151: 0 | P151: 0
A152: Oktober | C152: 0 | M152: 0 | N152: 0 | O152: 0 | P152: 0
A153: Nopember | C153: 0 | M153: 0 | N153: 0 | O153: 0 | P153: 0
A154: Desember | C154: 0 | M154: 0 | N154: 0 | O154: 0 | P154: 0
A155: Jumlah | C155: =SUM(C143:C154) -> 0 | D155: =SUM(D143:D154) -> 0 | E155: 0 | F155: 0 | G155: 0 | H155: 0 | I155: 0 | J155: 0 | K155: 0 | L155: 0 | P155: =SUM(P142:P154) -> 0
A157: =+A118+1 -> 5
A158: Simpanan
A159: Nama | B159: : | C159: =VLOOKUP(A157,Input!$L$2:$N$11,3,0) -> wawa
A160: No. Angg | B160: : | C160: =VLOOKUP(A157,Input!$L$2:$N$11,2,0) -> 2029 | J160: Jml.Dividen : | K160: =IF(P175=0,0,Q176) -> 0
A161: Bulan | C161: SP | D161: SW | E161: SS | F161: Tarik Simp | G161: SIHARA | J161: Pendidikan | M161: WISATA | P161: Saldo
G162: Simpanan | H162: Tarik Simp. | I162: saldo | J162: Simpanan | K162: Tarik Simp. | L162: saldo | M162: Simpanan | N162: Tarik Simp. | O162: saldo | P162: SW&SS
A163: Pindahan | I163: =+G163 -> 0 | L163: =+J163 -> 0 | O163: =+M163 -> 0 | P163: =+D163+E163 -> 0
A164: Januari | I164: =+I163+G164-H164 -> 0 | L164: =+L163+J164-K164 -> 0 | O164: =+O163+M164-N164 -> 0 | P164: =+P163+D164+E164-F164 -> 0
A165: Pebruari | I165: =+I164+G165-H165 -> 0 | L165: =+L164+J165-K165 -> 0 | O165: =+O164+M165-N165 -> 0 | P165: =+P164+D165+E165-F165 -> 0
A166: Maret | I166: 0 | J166: 0 | L166: 0 | O166: 0 | P166: 0
A167: april | I167: 0 | J167: 0 | L167: 0 | O167: 0 | P167: 0
A168: Mei | I168: 0 | L168: 0 | O168: 0 | P168: 0
A169: Juni | I169: 0 | L169: 0 | O169: 0 | P169: 0
A170: Juli | I170: 0 | L170: 0 | O170: 0 | P170: 0
A171: Agustus | I171: 0 | L171: 0 | O171: 0 | P171: 0
A172: September | I172: 0 | L172: 0 | O172: 0 | P172: 0
A173: Oktober | I173: 0 | L173: 0 | O173: 0 | P173: 0
A174: Nopember | I174: 0 | L174: 0 | O174: 0 | P174: 0
A175: Desember | I175: 0 | L175: 0 | O175: 0 | P175: 0
A176: Jumlah | C176: =SUM(C163:C175) -> 0 | D176: =IF(P175=0,(0),SUM(D163:D175)) -> 0 | E176: =IF(P175=0,(0),SUM(E163:E175)) -> 0 | F176: =SUM(F163:F175) -> 0 | G176: =SUM(G163:G175) -> 0 | H176: =SUM(H164:H175) -> 0 | I176: =+I175 -> 0 | J176: =SUM(J163:J175) -> 0 | K176: =SUM(K164:K175) -> 0 | L176: =+L175 -> 0 | M176: =SUM(M163:M175) -> 0 | N176: =SUM(N164:N175) -> 0 | O176: =+O175 -> 0
A178: Pinjaman | J178: Jml. BJP : | K178: =+J194 -> 0
A179: Bulan | C179: Salpin lalu | E179: Pinj.Baru | H179: Angsuran | K179: Bunga Pinj. | N179: Salpin bln ini | P179: PROPISI
D180: J. Panjang | E180: Ringan | F180: Barang | G180: J. Panjang | H180: Ringan | I180: Barang | J180: J. Panjang | K180: Ringan | L180: Barang | M180: J. Panjang | N180: Ringan | O180: Barang
A181: Pindahan | E181: 0 | F181: 0 | M181: =+C181+D181-G181 -> 0 | N181: =+E181 -> 0 | P181: 0
A182: Januari | C182: 0 | M182: =+M181+D182-G182 -> 0 | N182: =+N181+E182-H182 -> 0 | O182: =+O181+F182-I182 -> 0 | P182: 0
A183: Pebruari | C183: 0 | M183: 0 | N183: =+N182+E183-H183 -> 0 | O183: =+O182+F183-I183 -> 0
A184: Maret | C184: 0 | M184: 0 | N184: 0 | O184: 0 | P184: 0
A185: April | C185: 0 | M185: 0 | N185: 0 | O185: 0 | P185: 0
A186: Mei | C186: 0 | M186: 0 | N186: 0 | O186: 0 | P186: 0
A187: Juni | C187: 0 | M187: 0 | N187: 0 | O187: 0 | P187: 0
A188: Juli | C188: 0 | M188: 0 | N188: 0 | O188: 0 | P188: 0
A189: Agustus | C189: 0 | M189: 0 | N189: 0 | O189: 0 | P189: =+D189*0.01 -> 0
A190: September | C190: 0 | M190: 0 | N190: 0 | O190: 0 | P190: 0
A191: Oktober | C191: 0 | M191: 0 | N191: 0 | O191: 0 | P191: 0
A192: Nopember | C192: 0 | M192: 0 | N192: 0 | O192: 0 | P192: 0
A193: Desember | C193: 0 | M193: 0 | N193: 0 | O193: 0 | P193: 0
A194: Jumlah | C194: =SUM(C182:C193) -> 0 | D194: =SUM(D182:D193) -> 0 | E194: 0 | F194: 0 | G194: 0 | H194: 0 | I194: 0 | J194: 0 | K194: 0 | L194: 0 | P194: =SUM(P181:P193) -> 0
A196: =+A157+1 -> 6
A197: Simpanan
A198: Nama | B198: : | C198: =VLOOKUP(A196,Input!$L$2:$N$11,3,0) -> wowo
A199: No. Angg | B199: : | C199: =VLOOKUP(A196,Input!$L$2:$N$11,2,0) -> 2030 | J199: Jml.Dividen : | K199: =IF(P214=0,0,Q215) -> 0
A200: Bulan | C200: SP | D200: SW | E200: SS | F200: Tarik Simp | G200: SIHARA | J200: Pendidikan | M200: WISATA | P200: Saldo
G201: Simpanan | H201: Tarik Simp. | I201: saldo | J201: Simpanan | K201: Tarik Simp. | L201: saldo | M201: Simpanan | N201: Tarik Simp. | O201: saldo | P201: SW&SS
A202: Pindahan | I202: =+G202 -> 0 | L202: =+J202 -> 0 | O202: =+M202 -> 0 | P202: =+D202+E202 -> 0
A203: Januari | I203: =+I202+G203-H203 -> 0 | L203: =+L202+J203-K203 -> 0 | O203: =+O202+M203-N203 -> 0 | P203: =+P202+D203+E203-F203 -> 0
A204: Pebruari | I204: =+I203+G204-H204 -> 0 | L204: =+L203+J204-K204 -> 0 | O204: =+O203+M204-N204 -> 0 | P204: =+P203+D204+E204-F204 -> 0
A205: Maret | I205: 0 | J205: 0 | L205: 0 | O205: 0 | P205: 0
A206: april | I206: 0 | J206: 0 | L206: 0 | O206: 0 | P206: 0
A207: Mei | I207: 0 | L207: 0 | O207: 0 | P207: 0
A208: Juni | I208: 0 | L208: 0 | O208: 0 | P208: 0
A209: Juli | I209: 0 | L209: 0 | O209: 0 | P209: 0
A210: Agustus | I210: 0 | L210: 0 | O210: 0 | P210: 0
... 207 more rows
